Cogmind - Beta 13 @@@ ROGUE MODE // 2024.05.26 @ 00:15:45 Player: COGMINDER69 Result: Self-destructed Performance ------------- Evolutions (2) 1000 Regions Visited (3) 600 Robots Destroyed (33) 165 Value Destroyed (743) 743 Prototype IDs (3) 60 Alien Tech Used (0) 0 Bonus (0) 0 TOTAL SCORE: 2568 Bonus ------- None Cogmind --------- Core Integrity 47/550 Matter 168/300 Energy 240/240 System Corruption 0% Temperature Cool (0) Movement Treading (240) Ox1 Location -8/Materials Parts ------- > --- POWER (1) -------- Nuclear Core > --- PROPULSION (4) --- Light Treads Light Treads Light Treads Light Treads > --- UTILITY (4) ------ Medium Storage Unit Signal Interpreter Targeting Computer > --- WEAPON (2) ------- Enhanced Autogun Enhanced Autogun > --- INVENTORY (10) --- Light Nuclear Core Visual Processing Unit Sensor Array Sensor Array Signal Interpreter Terrain Scanner Shield Generator Advanced Beam Cannon Advanced Beam Cannon Datajack Peak State ------------ > --- POWER ------------ Nuclear Core > --- PROPULSION ------- Light Treads Light Treads Light Treads Light Treads > --- UTILITY ---------- Medium Storage Unit Signal Interpreter Targeting Computer Light Armor Plating > --- WEAPON ----------- Enhanced Autogun Enhanced Autogun > --- INVENTORY -------- Light Nuclear Core Visual Processing Unit Sensor Array Sensor Array Signal Interpreter Terrain Scanner Shield Generator Advanced Beam Cannon Advanced Beam Cannon Datajack [Rating: 20] Favorites ----------- Power Ion Engine Engine Ion Engine Power Core Light Nuclear Core Propulsion Light Treads Treads Light Treads Leg Carbon-fiber Leg Utility Medium Storage Unit Device Sensor Array Storage Medium Storage Unit Processor Signal Interpreter Protection Light Armor Plating Weapon Light Assault Rifle Energy Gun Medium Laser Energy Cannon Advanced Beam Cannon Ballistic Gun Light Assault Rifle Build | -11 -10 -10 -8 ------- Run | Yrd Mat Sub Mat Slots Evolved 4 | . . . 4 Power . | . . . . Propulsion 2 | . . . 2 Utility 2 | . . . 2 Weapon . | . . . . Parts Attached 40 | 6 13 1 20 Power 5 | 1 2 . 2 Engine 2 | 1 1 . . Core 3 | . 1 . 2 Reactor . | . . . . Propulsion 10 | 2 2 . 6 Treads 9 | 2 2 . 5 Leg 1 | . . . 1 Wheel . | . . . . Hover . | . . . . Flight . | . . . . Utility 12 | 1 6 . 5 Device 4 | . 3 . 1 Storage 4 | 1 3 . . Processor 2 | . . . 2 Hackware . | . . . . Protection 2 | . . . 2 Artifact . | . . . . Weapon 13 | 2 3 1 7 Energy Gun 3 | 2 . . 1 Energy Cannon 2 | . . . 2 Ballistic Gun 8 | . 3 1 4 Ballistic Cannon . | . . . . Launcher . | . . . . Special Weapon . | . . . . Impact Weapon . | . . . . Slashing Weapon . | . . . . Piercing Weapon . | . . . . Special Melee Weapon . | . . . . Unidentified Prototypes 1 | . . . 1 Parts Lost 4 | . . . 4 Power . | . . . . Propulsion 1 | . . . 1 Utility 1 | . . . 1 Weapon 2 | . . . 2 Highest Loss Streak 2 | . . . 2 To Critical Strikes . | . . . . Average Slot Usage (%) 98 | . 98 100 97 Engine 6 | . 10 . . Core 6 | . 3 14 9 Treads 28 | . 27 28 30 Leg 1 | . . . 4 Device 10 | . 13 14 3 Storage 12 | . 14 14 9 Processor 4 | . . . 18 Protection 1 | . . . 4 Energy Gun 1 | . 3 . . Energy Cannon 1 | . . . 5 Ballistic Gun 22 | . 24 28 11 Naked Turns . | . . . . Heaviest Build 88 | 13 88 20 28 Greatest Support 80 | 40 40 40 80 Greatest Overweight (x) 2 | . 2 . 1 Average Overweight (x) . | . . . . Largest Inventory Capacity 25 | 8 25 10 10 Average Capacity 9 | 7 10 10 10 Most Carried 10 | 4 10 10 10 Average Carried 8 | 1 8 10 8 Final Capacity 10 | 8 10 10 10 Final Carried 10 | 4 10 10 10 Class Distribution -------------------- 83% | Mutant 16% | Scavenger-Mutant Dominant Class ---------------- Mutant | -10/Materials Mutant | -10/Subcaves Scavenger-Mutant | -8/Materials Resources | -11 -10 -10 -8 ----------- Run | Yrd Mat Sub Mat Matter Collected 833 | 149 281 18 385 Remotely . | . . . . Salvage Created 1046 | . 183 96 767 Parts 90 | . 15 9 66 Haulers Intercepted 1 | . . . 1 Recyclers Shooed . | . . . . Parts Field Recycled . | . . . . Retrieved Matter . | . . . . Parts Self-Destructed 3 | . . 3 . Prevented . | . . . . Kills | -11 -10 -10 -8 ------- Run | Yrd Mat Sub Mat Combat Hostiles Destroyed 21 | . 3 2 16 Guns 18 | . 3 2 13 Cannons 3 | . . . 3 Classes Destroyed 12 | . 4 2 6 Worker 1 | . . . 1 Builder 2 | . . . 2 Tunneler 2 | . . . 2 Hauler 1 | . . . 1 Recycler 1 | . 1 . . Mechanic 1 | . . . 1 Operator 1 | . 1 . . Watcher 3 | . 2 . 1 Swarmer 10 | . 3 . 7 Grunt 7 | . . . 7 Sentry 3 | . . 1 2 Subdweller 1 | . . 1 . Best Kill Streak 7 | . 3 1 7 Combat Bots Only 7 | . 3 1 7 Max Kills in Single Turn 2 | . 1 1 2 Gunslinging . | . . . . Exploded . | . . . . Melee . | . . . . Uniques/NPCs Destroyed . | . . . . Combat | -11 -10 -10 -8 -------- Run | Yrd Mat Sub Mat Hostile Shots Fired 187 | . 29 13 145 Missed 37 | . 5 3 29 Damage Taken 2002 | . 189 186 1627 Core 558 | . 7 48 503 Absorbed by Shields . | . . . . Regen/Repaired (Parts) 70 | . 70 . . Core Remaining (%) 89 | 100 . 78 . Volleys Fired 139 | . 24 9 106 Largest 2 | . 2 2 2 Hottest 136 | . 90 40 136 Shots Fired 253 | . 47 18 188 Gun 207 | . 47 18 142 Cannon 46 | . . . 46 Launcher . | . . . . Special . | . . . . Kinetic 189 | . 40 18 131 Thermal 64 | . 7 . 57 Explosive . | . . . . Electromagnetic . | . . . . Robot Hit Streak 9 | . 5 6 9 Robot Miss Streak 5 | . 5 1 4 Penetration Max . | . . . . Secondary Targets 6 | . 1 . 5 Max Gunslinging Chain 1 | . 1 . 1 Shots Hit Robots 154 | . 20 13 121 Core Hits 65 | . 12 6 47 Critical Kills 2 | . 1 . 1 Critical Parts Destroyed 2 | . 1 1 . Critical Strikes 4 | . 2 1 1 Destroy 4 | . 2 1 1 Melee Attacks . | . . . . Impact . | . . . . Slashing . | . . . . Piercing . | . . . . Sneak Attacks . | . . . . Combat Hostiles . | . . . . Follow-up Attacks . | . . . . Damage Inflicted 1942 | . 199 102 1641 Guns 1527 | . 199 102 1226 Cannons 410 | . . . 410 Explosions . | . . . . Melee . | . . . . Ramming 5 | . . . 5 Kinetic 1392 | . 141 102 1149 Thermal 545 | . 58 . 487 Explosive . | . . . . Electromagnetic . | . . . . Impact . | . . . . Slashing . | . . . . Piercing . | . . . . Highest Corruption 1 | . 1 1 . Average Corruption 1 | . 1 1 . Corruption Purged . | . . . . Corruption Blocked . | . . . . Effects 4 | . . 4 . Data Loss (minor) 3 | . . 3 . Data Loss (major) 1 | . . 1 . Overload Shots . | . . . . Overflow Damage 10 | . . . 10 Projectiles 10 | . . . 10 Explosions . | . . . . Melee . | . . . . Knockbacks . | . . . . Impact . | . . . . Kinetic . | . . . . Secondary . | . . . . Self-Inflicted Damage . | . . . . Shots . | . . . . Rammed 1 | . . . 1 Targets Rammed 1 | . . . 1 Kicked . | . . . . Crushed . | . . . . Highest Temperature 541 | . 60 . 541 Average Temperature 145 | . 24 . 152 Received Heat Transfer 612 | . . 18 594 Effects 16 | . . . 16 Shutdowns 3 | . . . 3 Energy Bleed 3 | . . . 3 Interference 3 | . . . 3 Matter Decay 1 | . . . 1 Short Circuit 3 | . . . 3 Damage (core) 3 | . . . 3 Siege Activations . | . . . . Robots Corrupted . | . . . . Combat Hostiles . | . . . . Parts Fried . | . . . . Impact Corruptions . | . . . . Robots Melted . | . . . . Combat Hostiles . | . . . . Parts Melted . | . . . . Heat Transferred 1123 | . 161 . 962 Parts Sabotaged . | . . . . Parts Stolen . | . . . . Parts Stripped . | . . . . Power Chain Reactions . | . . . . Alert | -11 -10 -10 -8 ------- Run | Yrd Mat Sub Mat Peak Influence 321 | . 79 . 321 Initial . | . . . . Average 74 | . 25 . 199 Maximum Alert Level 1 | . . . 1 Low Security (%) 81 | 100 100 . 36 Level 1 18 | . . . 63 Level 2 . | . . . . Level 3 . | . . . . Level 4 . | . . . . Level 5 . | . . . . High Security . | . . . . Max Security . | . . . . Squads Dispatched . | . . . . Investigation . | . . . . Extermination . | . . . . Reinforcement . | . . . . Assault . | . . . . Garrison . | . . . . Intercept . | . . . . Searches Triggered . | . . . . Construction Impeded . | . . . . Haulers Reinforced . | . . . . Active Scanning Responses . | . . . . Cargo Convoy Interrupts . | . . . . Stealth | -11 -10 -10 -8 --------- Run | Yrd Mat Sub Mat Distress Signals 3 | . . . 3 Communications Jammed . | . . . . Distress Signals . | . . . . Times Spotted 36 | . 7 2 27 Peak Tracking Total 9 | . 3 1 9 Tactical Retreats 2 | . . . 2 Traps | -11 -10 -10 -8 ------- Run | Yrd Mat Sub Mat Traps Triggered 1 | . 1 . . Indirectly . | . . . . Trap Hack Attempts . | . . . . Triggered . | . . . . Disarmed . | . . . . Reprogrammed . | . . . . Reused . | . . . . Traps Extracted . | . . . . Installed . | . . . . Triggered . | . . . . Machines | -11 -10 -10 -8 ---------- Run | Yrd Mat Sub Mat Machines Disabled 2 | . . . 2 Max in Single Turn 1 | . . . 1 Machines Repaired . | . . . . Machines Dismantled . | . . . . Machines Sabotaged . | . . . . Overloaded Fab Kills . | . . . . Hacking | -11 -10 -10 -8 --------- Run | Yrd Mat Sub Mat Machines Accessed 13 | . 9 . 4 Terminals 8 | . 6 . 2 Fabricators . | . . . . Repair Stations 1 | . 1 . . Recycling Units 3 | . 2 . 1 Scanalyzers 1 | . . . 1 Garrison Access . | . . . . Total Hacks 43 | . 32 . 11 Successful 25 | . 17 . 8 Failed 18 | . 15 . 3 Catastrophic 2 | . 1 . 1 Database Lockouts . | . . . . Manual . | . . . . Terminals 27 | . 21 . 6 Fabricators . | . . . . Repair Stations 8 | . 8 . . Recycling Units 6 | . 3 . 3 Scanalyzers 2 | . . . 2 Garrison Access . | . . . . Terminal Hacks 15 | . 9 . 6 Record 5 | . 4 . 1 Prototype ID Bank 1 | . 1 . . Emergency Access Points 1 | . . . 1 Terminal Index 1 | . . . 1 Alert Level 1 | . . . 1 Locate Traps 4 | . 4 . . Surveillance Status 2 | . . . 2 Fabricator Hacks . | . . . . Repair Station Hacks 6 | . 6 . . Scan Component 3 | . 3 . . Repair 3 | . 3 . . Recycling Unit Hacks 4 | . 2 . 2 Report Inventory 2 | . 1 . 1 Retrieve Components 2 | . 1 . 1 Scanalyzer . | . . . . Garrison Access Hacks . | . . . . Unauthorized Hacks . | . . . . Terminals . | . . . . Fabricators . | . . . . Repair Stations . | . . . . Recycling Units . | . . . . Scanalyzers . | . . . . Garrison Access . | . . . . Data Cores Recovered 1 | . 1 . . Used . | . . . . Hacking Detections 10 | . 8 . 2 Full Trace Events 2 | . 2 . . Feedback Events . | . . . . Feedback Blocked . | . . . . Robot Schematics Acquired . | . . . . Robots Built . | . . . . Authchips . | . . . . Time . | . . . . Total Robot Build Rating . | . . . . Part Schematics Acquired . | . . . . Parts Built . | . . . . Authchips . | . . . . Time . | . . . . Total Part Build Rating . | . . . . Parts Repaired 3 | . 3 . . Time 78 | . 78 . . Parts Recycled . | . . . . Recycled Matter . | . . . . Retrieved Matter . | . . . . Retrieved Components 11 | . 10 . 1 Parts Scanalyzed . | . . . . Part Schematics Acquired . | . . . . Parts Damaged . | . . . . Bothacking | -11 -10 -10 -8 ------------ Run | Yrd Mat Sub Mat Used RIF Installer . | . . . . Robots Hacked . | . . . . Non-combat . | . . . . Combat . | . . . . Robot Hacks Applied . | . . . . Relay Couplers Released . | . . . . Fabnet Peak Effective % . | . . . . Robots Rewired . | . . . . Allies Hacked . | . . . . Hacks Repelled . | . . . . Allies | -11 -10 -10 -8 -------- Run | Yrd Mat Sub Mat Total Allies . | . . . . Largest Group . | . . . . Highest-Rated Group . | . . . . Highest-Rated Ally . | . . . . Total Orders . | . . . . Ally Attacks . | . . . . Total Damage . | . . . . Kills . | . . . . Allies Corrupted . | . . . . Allies Melted . | . . . . Intel | -11 -10 -10 -8 ------- Run | Yrd Mat Sub Mat Robot Analysis Total . | . . . . Derelict Logs Recovered . | . . . . Drone Launches . | . . . . Drone Recoveries . | . . . . Exploration | -11 -10 -10 -8 ------------- Run | Yrd Mat Sub Mat Turns Passed 2834 | 91 1616 439 688 Spaces Moved 1412 | 52 885 256 219 Core 4 | 4 . . . Treads 1408 | 48 885 256 219 Legs . | . . . . Wheels . | . . . . Hover . | . . . . Flight . | . . . . Fastest Speed 50 | 50 160 160 160 Average Speed 161 | 151 160 160 166 Slowest Speed 320 | 160 320 160 240 Overloaded Moves . | . . . . Propulsion Burnouts . | . . . . Robots Hopped . | . . . . Cave-ins Triggered . | . . . . Exploration Rate (%) 35 | 6 99 13 22 Regions Visited 3 Branch Regions 1 Pre-discovered Areas . | . . . . Known Exits Taken . | . . . . Unknown Exits Taken 3 | 1 1 1 . Scrap Searched . | . . . . Spaces Dug . | . . . . Terrain Destroyed . | . . . . Melee . | . . . . Projectile . | . . . . AOE . | . . . . Terrain Rammed . | . . . . Walls Destroyed . | . . . . Machines Disabled . | . . . . Actions | -11 -10 -10 -8 --------- Run | Yrd Mat Sub Mat Total 1748 | 61 1040 271 376 Wait 110 | . 96 5 9 Move 1409 | 51 884 255 219 Hop . | . . . . Pick Up 25 | 4 10 . 11 Fast Attach 20 | 6 9 1 4 Attach 7 | . . . 7 Detach 4 | . 3 . 1 Swap 13 | . 4 . 9 Drop 20 | . 10 1 9 Fire 139 | . 24 9 106 Melee . | . . . . Ram . | . . . . Kick . | . . . . Crush 1 | . . . 1 Escape Stasis . | . . . . Rewire . | . . . . Trap . | . . . . Miscellaneous . | . . . . Route ------- -11/Scrapyard -10/Materials (discovered 6 exits: [*Mat x3] / [*Min x2] / [*Sub]) -10/Subcaves -8/Materials History --------- Turn | Location | Event 7 | -11/Scrapyard | Discovered new exit (range 14) 92 | -11/Scrapyard | Entered Materials 257 | -10/Materials | Discovered new exit (range 15) 312 | -10/Materials | Build established: Mutant 415 | -10/Materials | Discovered new exit (range 14) 637 | -10/Materials | Repaired Sensor Array 667 | -10/Materials | Repaired Lgt. Treads 694 | -10/Materials | Repaired Lgt. Treads 742 | -10/Materials | Discovered new exit (range 16) 945 | -10/Materials | Discovered new exit (range 15) 1251 | -10/Materials | Discovered new exit (range 8) 1524 | -10/Materials | Discovered new exit (range 7) 1708 | -10/Materials | Entered Subcaves 1821 | -10/Subcaves | Discovered new exit (range 15) 2091 | -10/Subcaves | Shifting Twisted Machinery released Sub. Optics 2147 | -10/Subcaves | Entered Materials 2147 | -8/Materials | Evolved 4 slots: Propulsion x2, Utility x2 2329 | -8/Materials | Destroyed 7 combat bots 2670 | -8/Materials | Build established: Scavenger-Mutant 2738 | -8/Materials | Core integrity fell below 50% 2747 | -8/Materials | Core integrity fell below 20% 2835 | -8/Materials | Self-destructed Last Messages --------------- K-01 Serf cleans the Scanalyzer. Lgt. Treads broken. Overheating: Short circuit. K-01 Serf cleans the Scanalyzer. K-01 Serf collects debris. Overheating: Energy bleed (-48). S-10 Pest destroyed. K-01 Serf collects debris. Lgt. Treads broken. Overheating: Short circuit. G-47 Trooper destroyed. K-01 Serf cleans the Scanalyzer. Acquired 45 matter. K-01 Serf cleans the Nuclear Reactor. Slammed into K-01 Serf. K-01 Serf collects debris. K-01 Serf cleans the Scanalyzer. K-01 Serf collects debris. K-01 Serf cleans the Nuclear Reactor. Destroyed Lgt. Ion Engine. Map ----- +----------------------------------------------------+ | ????????# """ """ + # ?? #????????????????? | | ????????# """ """ # # ??? #????????????????? | | ????????# """ """ # ###???##?????????????????? | | ????????# # #????????????????????????? | | ????????# % # ^^ #????????????????????????? | | ????????###########^ ^ #????????????????????????? | | ????????# #| #????????????????????????? | | ?????????? """=+% +????????????????????????? | | ?????????? """ #= #????????????????????????? | | ??????????? """ # #????????????????????????? | | ??????????? """?+ *%= #????????????????????????? | | ????????????? ""??###!###????????????????????????? | | ?????????????? ?????# #??????????????????????????? | | ????????????????????# #??????????????????????????? | | ????????????????????# #??????????????????????????? | | ????????????????????# #??????????????????????????? | | ????????????????????# #??????????????????????????? | | ????????????????????# #??????????????????????????? | | ????????????????????# #??????????????????????????? | | ?????????????????####+#####??????????????????????? | | ?????????????????#! ] #??????????????????????? | | ?????????????????# a""" #??????????????????????? | | ?????????????????# """ #??????????????????????? | | ?????????????????#] """ =#??????????????????????? | | ?????????????????# *!####** #???????????????? | | ?????????????????# "" ""@/[%==[ #???????????????? | | ?????????????????# ""S""*####% #???????????????? | | ?????????????????# """"% #??????#???????????????? | | ?????????????????# = #??????????????????????? | | ?????????????????#####t####??????????????????????? | | ???????????????????? ?????????????????????????? | | ??????????????????? ?????????????????????????? | | ?????????????????? ?????????????????????????? | | ?????????????????#####+#?????????????????????????? | | ?????????????????????? ??????????????????????????? | | ??????????????????????"??????????????????????????? | | ?????????????????????????????????????????????????? | | ?????????????????????????????????????????????????? | | ?????????????????????????????????????????????????? | | ?????????????????????????????????????????????????? | | ?????????????????????????????????????????????????? | | ?????????????????????????????????????????????????? | | ?????????????????????????????????????????????????? | | ?????????????????????????????????????????????????? | | ?????????????????????????????????????????????????? | | ?????????????????????????????????????????????????? | | ?????????????????????????????????????????????????? | | ?????????????????????????????????????????????????? | | ?????????????????????????????????????????????????? | | ?????????????????????????????????????????????????? | +----------------------------------------------------+ Best States ------------- Heat Dissipation 31 Energy Generation 14 Energy Capacity 250 Matter Stores 300 Matter Capacity 300 Sight Range 16 Robot Scan Range 14 Terrain Scan Range 14 Terrain Scan Density 10 Armor Coverage 150 Evasion (%) 40 Targeting Accuracy 5 Recoil Reduction 4 Item Schematics ----------------- None Robot Schematics ------------------ None Fabricated ------------ Nothing Alien Tech Used ----------------- None Achievements -------------- None Challenges ------------ None Game ------ Seed AbsorptionRegenerativeSink Manual? 0 Play Time 01:01:11 Cumulative 3.2 hours Start 2024.05.21 @ 20:53:33 End 2024.05.26 @ 00:15:45 Sessions 5 Manual Loads 0 Difficulty Rogue Special Mode None Game No. 5 Rogue 5 Adventurer 0 Explorer 0 Win Type - Total 0 Types 0/0/0/0/0/0/0/0/0 Lore% 2 Gallery% 5 Achievement% 5 Wizard Run 0 Options --------- Layout 1 ASCII 0 Keyboard 0 Movement Mouse Keybinds 0 Fullscreen 2 Font 32/Cog Map View 50x35 Zoom Use 0% Tactical HUD 0 Map Filters NONE Filters NONE Steam 1 RUN: 80f99fc6-886a-4640-813a-5745bdbe95d7